[Event "Live Chess"]
[Site "Chess.com"]
[Date "2024.06.02"]
[Round "-"]
[White "NeilDruggan73"]
[Black "JanMur7"]
[Result "0-1"]
[WhiteElo "1748"]
[BlackElo "2308"]
[TimeControl "300"]
[EndTime "16:00:59 PDT"]
[Termination "JanMur7 won by resignation"]

1. d4 {[%clk 0:04:56.6]} 1... Nf6 {[%clk 0:04:58.4]} 2. Bg5 {[%clk 0:04:54.2]}
2... d5 {[%clk 0:04:54.1]} 3. Bxf6 {[%clk 0:04:52]} 3... exf6 {[%clk 0:04:54]}
4. e3 {[%clk 0:04:50.7]} 4... c5 {[%clk 0:04:53.3]} 5. c3 {[%clk 0:04:41.6]}
5... Nc6 {[%clk 0:04:48.4]} 6. g3 {[%clk 0:04:40.3]} 6... Bf5 {[%clk 0:04:43.7]}
7. Bg2 {[%clk 0:04:38.8]} 7... cxd4 {[%clk 0:04:37.3]} 8. cxd4 {[%clk
0:04:35.9]} 8... Nb4 {[%clk 0:04:33.1]} 9. Qa4+ {[%clk 0:04:14.3]} 9... Qd7
{[%clk 0:04:31.3]} 10. Qxd7+ {[%clk 0:04:12.4]} 10... Kxd7 {[%clk 0:04:31.2]}
11. Na3 {[%clk 0:03:56.9]} 11... Nd3+ {[%clk 0:04:28.6]} 12. Ke2 {[%clk
0:03:52.8]} 12... Nxb2 {[%clk 0:04:24.8]} 13. e4 {[%clk 0:03:32.1]} 13... Bxa3
{[%clk 0:04:15.8]} 14. exf5 {[%clk 0:03:29.6]} 14... Rhe8+ {[%clk 0:04:14.5]}
15. Kf1 {[%clk 0:03:23]} 15... Kd6 {[%clk 0:04:09.5]} 16. f4 {[%clk 0:03:13.3]}
16... Nc4 {[%clk 0:04:06.7]} 17. Kf2 {[%clk 0:03:08.5]} 17... Bb2 {[%clk
0:04:04.9]} 18. Rd1 {[%clk 0:03:05.3]} 18... Ne3 {[%clk 0:04:03.6]} 19. Rd2
{[%clk 0:02:57.7]} 19... Bc3 {[%clk 0:04:01.7]} 20. Rd3 {[%clk 0:02:48.5]} 20...
Nxg2 {[%clk 0:03:53.8]} 21. Rxc3 {[%clk 0:02:40.9]} 21... Ne1 {[%clk 0:03:52]}
22. Ne2 {[%clk 0:02:34.5]} 22... Re4 {[%clk 0:03:33.8]} 23. Rxe1 {[%clk
0:02:28.7]} 23... Rae8 {[%clk 0:03:33.3]} 24. Rcc1 {[%clk 0:02:24]} 24... b5
{[%clk 0:03:30.4]} 25. Rc5 {[%clk 0:02:19.7]} 25... Rxd4 {[%clk 0:03:25.2]} 26.
Nxd4 {[%clk 0:02:15.7]} 26... Rxe1 {[%clk 0:03:23.8]} 27. Rxb5 {[%clk
0:02:06.7]} 27... Rd1 {[%clk 0:03:15.7]} 28. Nb3 {[%clk 0:02:01.4]} 28... Rh1
{[%clk 0:03:11.9]} 29. h4 {[%clk 0:01:56.5]} 29... Rh2+ {[%clk 0:03:07.7]} 30.
Kf3 {[%clk 0:01:54.6]} 30... Rxa2 {[%clk 0:02:59.9]} 31. Rb7 {[%clk 0:01:51.2]}
31... Ra3 {[%clk 0:02:58.9]} 32. Kg4 {[%clk 0:01:45.9]} 32... a5 {[%clk
0:02:54.3]} 33. Nd4 {[%clk 0:01:44.5]} 33... Rd3 {[%clk 0:02:51.6]} 34. Nb3
{[%clk 0:01:25.2]} 34... a4 {[%clk 0:02:47.6]} 35. Nc1 {[%clk 0:01:09.2]} 35...
Rc3 {[%clk 0:02:40.5]} 36. Ne2 {[%clk 0:01:06.5]} 36... Rc4 {[%clk 0:02:18.2]}
37. Ra7 {[%clk 0:01:03.9]} 37... d4 {[%clk 0:02:12.7]} 38. Ra8 {[%clk
0:00:53.6]} 38... d3 {[%clk 0:02:10.1]} 39. Rd8+ {[%clk 0:00:51.5]} 39... Kc5
{[%clk 0:02:04.4]} 40. Rxd3 {[%clk 0:00:51.1]} 40... Kb4 {[%clk 0:02:01.4]} 41.
Nd4 {[%clk 0:00:46.9]} 41... a3 {[%clk 0:01:58]} 42. Nb5 {[%clk 0:00:33]} 42...
a2 {[%clk 0:01:36.8]} 43. Ra3 {[%clk 0:00:30.3]} 43... Rc2 {[%clk 0:01:36.2]}
44. Nd4 {[%clk 0:00:19.3]} 44... Kxa3 {[%clk 0:01:33.5]} 45. Nxc2+ {[%clk
0:00:18]} 45... Kb2 {[%clk 0:01:33.1]} 46. Ne3 {[%clk 0:00:14.4]} 46... a1=Q
{[%clk 0:01:31.6]} 0-1

[Event "Live Chess"]
[Site "Chess.com"]
[Date "2024.06.02"]
[Round "-"]
[White "GrahamCuthbert"]
[Black "CCGoodKnightRookie"]
[Result "0-1"]
[WhiteElo "1031"]
[BlackElo "2310"]
[TimeControl "300"]
[EndTime "16:01:03 PDT"]
[Termination "CCGoodKnightRookie won by resignation"]

1. d4 {[%clk 0:04:56.7]} 1... Nf6 {[%clk 0:04:59.5]} 2. Bf4 {[%clk 0:04:55.8]}
2... e6 {[%clk 0:04:57.3]} 3. Nf3 {[%clk 0:04:54.9]} 3... d5 {[%clk 0:04:56.7]}
4. e3 {[%clk 0:04:51.7]} 4... c5 {[%clk 0:04:56.2]} 5. c3 {[%clk 0:04:48.1]}
5... Qb6 {[%clk 0:04:55.6]} 6. Qb3 {[%clk 0:04:46.6]} 6... c4 {[%clk 0:04:55.1]}
7. Qxb6 {[%clk 0:04:42.9]} 7... axb6 {[%clk 0:04:55]} 8. a3 {[%clk 0:04:40]}
8... b5 {[%clk 0:04:54.1]} 9. Nbd2 {[%clk 0:04:36.9]} 9... b4 {[%clk 0:04:52.8]}
10. cxb4 {[%clk 0:04:21.2]} 10... Bxb4 {[%clk 0:04:50.9]} 11. Bxb8 {[%clk
0:04:02.7]} 11... Bxd2+ {[%clk 0:04:44.5]} 12. Nxd2 {[%clk 0:03:55.7]} 12...
Rxb8 {[%clk 0:04:44.2]} 13. Be2 {[%clk 0:03:50.1]} 13... b5 {[%clk 0:04:42.2]}
14. O-O {[%clk 0:03:41]} 14... O-O {[%clk 0:04:40.4]} 15. Rfc1 {[%clk
0:03:26.9]} 15... Bd7 {[%clk 0:04:37.9]} 16. b3 {[%clk 0:03:23.7]} 16... Rfc8
{[%clk 0:04:35.8]} 17. bxc4 {[%clk 0:03:20.3]} 17... bxc4 {[%clk 0:04:34.3]} 18.
Nb1 {[%clk 0:03:11.5]} 18... Ne4 {[%clk 0:04:32.4]} 19. Nc3 {[%clk 0:03:08.6]}
19... Nxc3 {[%clk 0:04:30.9]} 20. Rxc3 {[%clk 0:03:07.4]} 20... Rb2 {[%clk
0:04:30.8]} 21. Kf1 {[%clk 0:03:00.2]} 21... Rcb8 {[%clk 0:04:29.6]} 22. Rcc1
{[%clk 0:02:41.8]} 22... Ba4 {[%clk 0:04:23.6]} 23. f3 {[%clk 0:02:29.5]} 23...
Kf8 {[%clk 0:04:17.8]} 24. e4 {[%clk 0:02:28.5]} 24... Ke7 {[%clk 0:04:16.6]}
25. exd5 {[%clk 0:02:27.2]} 25... exd5 {[%clk 0:04:16.5]} 26. g3 {[%clk
0:02:24]} 26... Kd6 {[%clk 0:04:15.2]} 27. f4 {[%clk 0:02:23]} 27... Re8 {[%clk
0:04:14.1]} 28. Re1 {[%clk 0:01:55.8]} 28... c3 {[%clk 0:04:11.2]} 29. Rac1
{[%clk 0:01:52]} 29... Rbxe2 {[%clk 0:04:09.1]} 30. Rxe2 {[%clk 0:01:47.3]}
30... Bb5 {[%clk 0:04:08.5]} 31. Rc2 {[%clk 0:01:43.2]} 31... Rxe2 {[%clk
0:04:08]} 32. Rxe2 {[%clk 0:01:39.4]} 32... c2 {[%clk 0:04:07.5]} 0-1

[Event "Live Chess"]
[Site "Chess.com"]
[Date "2024.06.02"]
[Round "-"]
[White "raclement"]
[Black "DoctorMantisTobogganMD"]
[Result "0-1"]
[WhiteElo "1729"]
[BlackElo "2178"]
[TimeControl "300"]
[EndTime "16:01:04 PDT"]
[Termination "DoctorMantisTobogganMD won by resignation"]

1. Nf3 {[%clk 0:04:54.9]} 1... c6 {[%clk 0:04:59.9]} 2. g3 {[%clk 0:04:50.6]}
2... g6 {[%clk 0:04:58.5]} 3. Bg2 {[%clk 0:04:48.3]} 3... d5 {[%clk 0:04:58.4]}
4. O-O {[%clk 0:04:44]} 4... Bg7 {[%clk 0:04:58.3]} 5. d4 {[%clk 0:04:41.5]}
5... Nf6 {[%clk 0:04:57]} 6. c3 {[%clk 0:04:40.3]} 6... O-O {[%clk 0:04:56.9]}
7. Nbd2 {[%clk 0:04:38.9]} 7... Bg4 {[%clk 0:04:56.1]} 8. Re1 {[%clk 0:04:37.5]}
8... Bxf3 {[%clk 0:04:55.2]} 9. Bxf3 {[%clk 0:04:35]} 9... Nbd7 {[%clk
0:04:55.1]} 10. e4 {[%clk 0:04:33.6]} 10... dxe4 {[%clk 0:04:53.2]} 11. Nxe4
{[%clk 0:04:31.4]} 11... Nxe4 {[%clk 0:04:53.1]} 12. Bxe4 {[%clk 0:04:28.6]}
12... e5 {[%clk 0:04:53]} 13. dxe5 {[%clk 0:04:25]} 13... Nxe5 {[%clk
0:04:51.6]} 14. Qb3 {[%clk 0:04:21.5]} 14... Qb6 {[%clk 0:04:48.8]} 15. Be3
{[%clk 0:04:09.4]} 15... Qxb3 {[%clk 0:04:47.1]} 16. axb3 {[%clk 0:04:07.2]}
16... a6 {[%clk 0:04:47]} 17. Rad1 {[%clk 0:04:01.7]} 17... Rad8 {[%clk
0:04:45]} 18. f4 {[%clk 0:03:57.9]} 18... Ng4 {[%clk 0:04:38.6]} 19. Bb6 {[%clk
0:03:46.6]} 19... Rxd1 {[%clk 0:04:36.8]} 20. Rxd1 {[%clk 0:03:44.4]} 20... Re8
{[%clk 0:04:36.1]} 21. Bf3 {[%clk 0:03:37.1]} 21... Nf6 {[%clk 0:04:34.7]} 22.
Rd2 {[%clk 0:03:28]} 22... h5 {[%clk 0:04:31.7]} 23. Kg2 {[%clk 0:03:26.7]}
23... Bf8 {[%clk 0:04:26.3]} 24. Bd4 {[%clk 0:03:23]} 24... Ng4 {[%clk
0:04:18.1]} 25. Bxg4 {[%clk 0:03:17.3]} 25... hxg4 {[%clk 0:04:18]} 26. Bf6
{[%clk 0:03:11.2]} 26... Be7 {[%clk 0:04:14.1]} 27. Bxe7 {[%clk 0:03:08.1]}
27... Rxe7 {[%clk 0:04:12.8]} 28. Kf2 {[%clk 0:03:07.1]} 28... Kg7 {[%clk
0:04:10.3]} 29. Rd4 {[%clk 0:03:01.3]} 29... Kf6 {[%clk 0:04:08]} 30. b4 {[%clk
0:02:55.2]} 30... Kf5 {[%clk 0:03:57]} 31. Rd3 {[%clk 0:02:47.4]} 31... Kf6
{[%clk 0:03:40.2]} 32. Re3 {[%clk 0:02:45.3]} 32... Rd7 {[%clk 0:03:38.7]} 33.
Ke2 {[%clk 0:02:42.4]} 33... Rd8 {[%clk 0:03:37.1]} 34. Re5 {[%clk 0:02:39.9]}
34... Rh8 {[%clk 0:03:34.8]} 35. Kd3 {[%clk 0:02:33.3]} 35... Rxh2 {[%clk
0:03:32.6]} 36. Rg5 {[%clk 0:02:31.7]} 36... Rxb2 {[%clk 0:03:25.7]} 37. Rxg4
{[%clk 0:02:30.2]} 37... Rf2 {[%clk 0:03:16.5]} 38. Rg5 {[%clk 0:02:27.8]} 38...
Kg7 {[%clk 0:03:13.2]} 39. Re5 {[%clk 0:02:24.8]} 39... Rf3+ {[%clk 0:03:11.4]}
40. Kd4 {[%clk 0:02:21.9]} 40... Kf6 {[%clk 0:03:09.9]} 41. Re3 {[%clk
0:02:16.4]} 41... Rxe3 {[%clk 0:03:08.1]} 42. Kxe3 {[%clk 0:02:14.9]} 42... Kf5
{[%clk 0:03:06.3]} 43. Kf3 {[%clk 0:02:13.7]} 43... Ke6 {[%clk 0:03:04.4]} 44.
g4 {[%clk 0:02:12.6]} 44... f5 {[%clk 0:03:03.1]} 45. g5 {[%clk 0:02:09.2]}
45... Kd5 {[%clk 0:03:01.5]} 46. Ke3 {[%clk 0:02:08.1]} 46... Kc4 {[%clk
0:03:00.6]} 47. Kd2 {[%clk 0:02:07]} 47... c5 {[%clk 0:02:59.6]} 48. bxc5 {[%clk
0:02:04.8]} 48... Kxc5 {[%clk 0:02:59.5]} 49. Kd3 {[%clk 0:02:03.5]} 49... b5
{[%clk 0:02:58.8]} 50. Kc2 {[%clk 0:02:01.1]} 50... Kc4 {[%clk 0:02:57.9]} 51.
Kb2 {[%clk 0:01:59.7]} 51... a5 {[%clk 0:02:57.8]} 52. Kc2 {[%clk 0:01:58]}
52... b4 {[%clk 0:02:55.6]} 53. cxb4 {[%clk 0:01:56.2]} 53... axb4 {[%clk
0:02:55.5]} 54. Kb2 {[%clk 0:01:54.9]} 54... b3 {[%clk 0:02:54.6]} 55. Kc1
{[%clk 0:01:52.4]} 55... Kc3 {[%clk 0:02:52.7]} 56. Kb1 {[%clk 0:01:51.1]} 56...
b2 {[%clk 0:02:51.7]} 0-1

[Event "Live Chess"]
[Site "Chess.com"]
[Date "2024.06.02"]
[Round "-"]
[White "toog"]
[Black "ShanthamGrarks"]
[Result "1-0"]
[WhiteElo "2600"]
[BlackElo "1786"]
[TimeControl "300"]
[EndTime "16:01:08 PDT"]
[Termination "toog won by resignation"]

1. Nf3 {[%clk 0:04:58.4]} 1... b6 {[%clk 0:04:51.8]} 2. e4 {[%clk 0:04:56.7]}
2... Nc6 {[%clk 0:04:51.1]} 3. Nc3 {[%clk 0:04:56]} 3... Bb7 {[%clk 0:04:48.3]}
4. d4 {[%clk 0:04:55.1]} 4... e6 {[%clk 0:04:46.6]} 5. d5 {[%clk 0:04:54]} 5...
exd5 {[%clk 0:04:44.8]} 6. exd5 {[%clk 0:04:53.9]} 6... Nb4 {[%clk 0:04:40.8]}
7. a3 {[%clk 0:04:50.3]} 7... Na6 {[%clk 0:04:37.7]} 8. Bc4 {[%clk 0:04:49.7]}
8... d6 {[%clk 0:04:35.4]} 9. O-O {[%clk 0:04:46.7]} 9... Nc5 {[%clk 0:04:33.6]}
10. Bb5+ {[%clk 0:04:43.7]} 10... Nd7 {[%clk 0:04:26.3]} 11. Nd4 {[%clk
0:04:41.5]} 11... Qf6 {[%clk 0:04:10.9]} 12. Qg4 {[%clk 0:04:33.8]} 12... O-O-O
{[%clk 0:03:55.4]} 13. Bg5 {[%clk 0:04:28.8]} 13... Qg6 {[%clk 0:03:45.4]} 14.
Bd3 {[%clk 0:04:26]} 14... f5 {[%clk 0:03:33]} 15. Bxf5 {[%clk 0:04:24]} 15...
Qf7 {[%clk 0:03:31.4]} 16. Nc6 {[%clk 0:04:19.5]} 16... Bxc6 {[%clk 0:03:29.6]}
17. dxc6 {[%clk 0:04:19.4]} 17... Nf6 {[%clk 0:03:27.8]} 18. Bxf6 {[%clk
0:04:16.2]} 18... gxf6 {[%clk 0:03:21]} 19. Bxd7+ {[%clk 0:04:15]} 19... Kb8
{[%clk 0:03:18.6]} 20. Qa4 {[%clk 0:04:14]} 20... Rg8 {[%clk 0:03:00]} 21. Qa6
{[%clk 0:04:10.6]} 21... Rxg2+ {[%clk 0:02:57.6]} 22. Kxg2 {[%clk 0:04:08.8]}
1-0

[Event "Live Chess"]
[Site "Chess.com"]
[Date "2024.06.02"]
[Round "-"]
[White "AlexanderMatlak"]
[Black "wadsy27"]
[Result "0-1"]
[WhiteElo "2396"]
[BlackElo "2569"]
[TimeControl "300"]
[EndTime "16:01:20 PDT"]
[Termination "wadsy27 won by resignation"]

1. c4 {[%clk 0:04:54.7]} 1... e5 {[%clk 0:04:56.8]} 2. Nc3 {[%clk 0:04:52.8]}
2... Nf6 {[%clk 0:04:56]} 3. Nf3 {[%clk 0:04:51.4]} 3... e4 {[%clk 0:04:55.4]}
4. Ng5 {[%clk 0:04:49.9]} 4... c6 {[%clk 0:04:55]} 5. Ngxe4 {[%clk 0:04:46.9]}
5... Nxe4 {[%clk 0:04:54.9]} 6. Nxe4 {[%clk 0:04:46.5]} 6... d5 {[%clk
0:04:54.5]} 7. cxd5 {[%clk 0:04:46.1]} 7... cxd5 {[%clk 0:04:54.4]} 8. Ng3
{[%clk 0:04:43.7]} 8... h5 {[%clk 0:04:53.7]} 9. e3 {[%clk 0:04:43.2]} 9... h4
{[%clk 0:04:53.1]} 10. Ne2 {[%clk 0:04:40.7]} 10... Nc6 {[%clk 0:04:52.4]} 11.
d4 {[%clk 0:04:38.4]} 11... Bd6 {[%clk 0:04:51.5]} 12. Nc3 {[%clk 0:04:37]}
12... h3 {[%clk 0:04:35.4]} 13. gxh3 {[%clk 0:04:34]} 13... Bxh3 {[%clk
0:04:30.8]} 14. Bxh3 {[%clk 0:04:32.2]} 14... Rxh3 {[%clk 0:04:30.4]} 15. Qg4
{[%clk 0:04:28.7]} 15... Qh4 {[%clk 0:04:29]} 16. Qxh4 {[%clk 0:04:26.7]} 16...
Rxh4 {[%clk 0:04:28.9]} 17. Nxd5 {[%clk 0:04:21.9]} 17... O-O-O {[%clk
0:04:26.6]} 18. Bd2 {[%clk 0:04:14.6]} 18... Bxh2 {[%clk 0:03:56.9]} 19. Nc3
{[%clk 0:04:10]} 19... Nb4 {[%clk 0:03:43.7]} 20. Ke2 {[%clk 0:04:08.5]} 20...
Rdh8 {[%clk 0:03:40.7]} 21. Rac1 {[%clk 0:03:55.7]} 21... Kd7 {[%clk 0:03:34.5]}
22. Nb5 {[%clk 0:03:43.1]} 22... Nc6 {[%clk 0:03:32.9]} 23. d5 {[%clk
0:03:42.6]} 23... Ne7 {[%clk 0:03:29.8]} 24. Rc7+ {[%clk 0:03:38.3]} 24... Bxc7
{[%clk 0:03:27.6]} 25. Rxh4 {[%clk 0:03:35.9]} 25... Rxh4 {[%clk 0:03:26.1]} 0-1

[Event "Live Chess"]
[Site "Chess.com"]
[Date "2024.06.02"]
[Round "-"]
[White "Yegorych"]
[Black "MagnersCarlsberg2870"]
[Result "0-1"]
[WhiteElo "1553"]
[BlackElo "1766"]
[TimeControl "300"]
[EndTime "16:01:39 PDT"]
[Termination "MagnersCarlsberg2870 won by resignation"]

1. d4 {[%clk 0:04:51.7]} 1... Nf6 {[%clk 0:04:58.7]} 2. Nc3 {[%clk 0:04:49.8]}
2... e6 {[%clk 0:04:55.1]} 3. e4 {[%clk 0:04:47.5]} 3... Bb4 {[%clk 0:04:53.5]}
4. Bd3 {[%clk 0:04:38.1]} 4... Bxc3+ {[%clk 0:04:51.5]} 5. bxc3 {[%clk
0:04:36.7]} 5... c5 {[%clk 0:04:45.5]} 6. Ba3 {[%clk 0:04:31.5]} 6... b6 {[%clk
0:04:38.3]} 7. dxc5 {[%clk 0:04:23.9]} 7... bxc5 {[%clk 0:04:37.1]} 8. Bxc5
{[%clk 0:04:22.6]} 8... d6 {[%clk 0:04:35.8]} 9. Bb5+ {[%clk 0:04:13.7]} 9...
Bd7 {[%clk 0:04:25.4]} 10. Bxd7+ {[%clk 0:04:10.3]} 10... Nbxd7 {[%clk
0:04:23.4]} 11. Qxd6 {[%clk 0:04:03.3]} 11... Nxe4 {[%clk 0:04:19]} 12. Qg3
{[%clk 0:03:35.6]} 12... Nxg3 {[%clk 0:04:16.9]} 0-1

[Event "Live Chess"]
[Site "Chess.com"]
[Date "2024.06.02"]
[Round "-"]
[White "Queensandpawns"]
[Black "vincents82"]
[Result "1-0"]
[WhiteElo "2320"]
[BlackElo "2042"]
[TimeControl "300"]
[EndTime "16:02:15 PDT"]
[Termination "Queensandpawns won by checkmate"]

1. e4 {[%clk 0:04:58.9]} 1... d5 {[%clk 0:04:57.4]} 2. Nc3 {[%clk 0:04:57.2]}
2... dxe4 {[%clk 0:04:54.4]} 3. Nxe4 {[%clk 0:04:57.1]} 3... Nd7 {[%clk
0:04:53.5]} 4. Nf3 {[%clk 0:04:54.5]} 4... Ngf6 {[%clk 0:04:52.7]} 5. Neg5
{[%clk 0:04:54]} 5... h6 {[%clk 0:04:51]} 6. Nxf7 {[%clk 0:04:53.1]} 6... Kxf7
{[%clk 0:04:50.5]} 7. d4 {[%clk 0:04:53]} 7... g6 {[%clk 0:04:48.4]} 8. Bd3
{[%clk 0:04:52]} 8... Nb6 {[%clk 0:04:37.4]} 9. Ne5+ {[%clk 0:04:50.7]} 9... Kg7
{[%clk 0:04:35.9]} 10. Nxg6 {[%clk 0:04:45.2]} 10... Rg8 {[%clk 0:04:32]} 11.
Qd2 {[%clk 0:04:37.4]} 11... Qd5 {[%clk 0:04:29.7]} 12. Qxh6+ {[%clk 0:04:36]}
12... Kf7 {[%clk 0:04:27.9]} 13. Nxf8 {[%clk 0:04:32.2]} 13... Rxf8 {[%clk
0:04:24.9]} 14. Bg6+ {[%clk 0:04:28.4]} 14... Ke6 {[%clk 0:04:23.9]} 15. Qxf8
{[%clk 0:04:27.8]} 15... Qxd4 {[%clk 0:04:20.5]} 16. Be3 {[%clk 0:04:24.5]}
16... Qb4+ {[%clk 0:04:18.8]} 17. c3 {[%clk 0:04:23.4]} 17... Qxb2 {[%clk
0:04:17.6]} 18. Rd1 {[%clk 0:04:21.2]} 18... Qxc3+ {[%clk 0:04:16.5]} 19. Kf1
{[%clk 0:04:20.3]} 19... Bd7 {[%clk 0:04:01.4]} 20. Qf7+ {[%clk 0:04:19.2]}
20... Ke5 {[%clk 0:03:58.9]} 21. f4# {[%clk 0:04:18.1]} 1-0

[Event "Live Chess"]
[Site "Chess.com"]
[Date "2024.06.02"]
[Round "-"]
[White "McFim"]
[Black "ACM42"]
[Result "0-1"]
[WhiteElo "1638"]
[BlackElo "2155"]
[TimeControl "300"]
[EndTime "16:02:49 PDT"]
[Termination "ACM42 won on time"]

1. e4 {[%clk 0:04:57.2]} 1... e6 {[%clk 0:04:58.6]} 2. d4 {[%clk 0:04:55.9]}
2... d5 {[%clk 0:04:58]} 3. e5 {[%clk 0:04:54.3]} 3... c5 {[%clk 0:04:56.8]} 4.
c3 {[%clk 0:04:53.8]} 4... Nc6 {[%clk 0:04:56.2]} 5. Nf3 {[%clk 0:04:52.8]} 5...
Qb6 {[%clk 0:04:54.1]} 6. Be2 {[%clk 0:04:51.6]} 6... Bd7 {[%clk 0:04:51.7]} 7.
O-O {[%clk 0:04:49.5]} 7... f6 {[%clk 0:04:48.9]} 8. a3 {[%clk 0:04:13.6]} 8...
a5 {[%clk 0:04:46.6]} 9. exf6 {[%clk 0:04:09.1]} 9... Nxf6 {[%clk 0:04:45.1]}
10. Re1 {[%clk 0:03:54.6]} 10... Bd6 {[%clk 0:04:41.2]} 11. Nbd2 {[%clk
0:03:42.4]} 11... cxd4 {[%clk 0:04:37.3]} 12. Nxd4 {[%clk 0:03:35.9]} 12... Nxd4
{[%clk 0:04:36.3]} 13. cxd4 {[%clk 0:03:33.3]} 13... Qxd4 {[%clk 0:04:35.6]} 14.
Nf3 {[%clk 0:03:31]} 14... Qb6 {[%clk 0:04:19.2]} 15. Be3 {[%clk 0:03:27.1]}
15... Qd8 {[%clk 0:04:17.5]} 16. h3 {[%clk 0:03:25.1]} 16... O-O {[%clk
0:04:16.6]} 17. Ng5 {[%clk 0:02:57.8]} 17... e5 {[%clk 0:04:10.7]} 18. Nf3
{[%clk 0:02:48.8]} 18... Bc6 {[%clk 0:04:07.6]} 19. Rc1 {[%clk 0:02:32.2]} 19...
Qd7 {[%clk 0:04:04.2]} 20. Bc5 {[%clk 0:02:29.5]} 20... Rae8 {[%clk 0:03:42.8]}
21. b4 {[%clk 0:02:15.3]} 21... axb4 {[%clk 0:03:16]} 22. axb4 {[%clk 0:02:13]}
22... Ne4 {[%clk 0:02:50.3]} 23. Bxd6 {[%clk 0:02:01.2]} 23... Nxd6 {[%clk
0:02:46.1]} 24. Ng5 {[%clk 0:01:48.4]} 24... h6 {[%clk 0:02:42.4]} 25. Bg4
{[%clk 0:01:42.7]} 25... Qe7 {[%clk 0:02:18.9]} 26. Nf3 {[%clk 0:01:40.6]} 26...
Qf6 {[%clk 0:02:03.5]} 27. Re2 {[%clk 0:00:47.4]} 27... Nb5 {[%clk 0:01:56.6]}
28. Qe1 {[%clk 0:00:41.3]} 28... e4 {[%clk 0:01:54.4]} 29. Nh2 {[%clk
0:00:35.2]} 29... Nc3 {[%clk 0:01:33.6]} 30. Qxc3 {[%clk 0:00:31.4]} 30... d4
{[%clk 0:01:31.2]} 31. Qc4+ {[%clk 0:00:27.3]} 31... Kh8 {[%clk 0:01:29.1]} 32.
f3 {[%clk 0:00:25.2]} 32... e3 {[%clk 0:01:18.6]} 33. Rd1 {[%clk 0:00:20.3]}
33... Rd8 {[%clk 0:01:10.2]} 34. f4 {[%clk 0:00:17.4]} 34... Qxf4 {[%clk
0:01:03.4]} 35. Bf3 {[%clk 0:00:15.1]} 35... Ba4 {[%clk 0:00:52.3]} 36. Rc1
{[%clk 0:00:12.2]} 36... d3 {[%clk 0:00:46]} 37. Qxf4 {[%clk 0:00:10.5]} 37...
Rxf4 {[%clk 0:00:44.8]} 38. Rxe3 {[%clk 0:00:09.2]} 38... d2 {[%clk 0:00:43.8]}
39. Ra1 {[%clk 0:00:07.3]} 39... d1=Q+ {[%clk 0:00:36.7]} 40. Bxd1 {[%clk
0:00:06]} 40... Bxd1 {[%clk 0:00:34.8]} 41. Nf3 {[%clk 0:00:04.3]} 41... Bxf3
{[%clk 0:00:30.5]} 42. Rxf3 {[%clk 0:00:03.2]} 42... Rxb4 {[%clk 0:00:28.8]} 43.
Raf1 {[%clk 0:00:01.3]} 43... Rd7 {[%clk 0:00:25.1]} 44. Rf8+ {[%clk 0:00:00.3]}
44... Kh7 {[%clk 0:00:23.7]} 45. Rb8 {[%clk 0:00:00.1]} 45... Rb2 {[%clk
0:00:21.3]} 0-1

[Event "Live Chess"]
[Site "Chess.com"]
[Date "2024.06.02"]
[Round "-"]
[White "NAZRIZ1977"]
[Black "TheSmoulderingMaster"]
[Result "0-1"]
[WhiteElo "2160"]
[BlackElo "1738"]
[TimeControl "300"]
[EndTime "16:02:55 PDT"]
[Termination "TheSmoulderingMaster won by checkmate"]

1. d4 {[%clk 0:04:55.8]} 1... Nf6 {[%clk 0:04:57.3]} 2. Nc3 {[%clk 0:04:55.1]}
2... d6 {[%clk 0:04:56.2]} 3. e4 {[%clk 0:04:53.9]} 3... g6 {[%clk 0:04:55.4]}
4. Nge2 {[%clk 0:04:53]} 4... Bg7 {[%clk 0:04:54.7]} 5. f3 {[%clk 0:04:52.7]}
5... O-O {[%clk 0:04:53.9]} 6. Be3 {[%clk 0:04:52.3]} 6... c6 {[%clk 0:04:53.2]}
7. Qd2 {[%clk 0:04:51.5]} 7... Qa5 {[%clk 0:04:52.1]} 8. O-O-O {[%clk
0:04:50.3]} 8... Nbd7 {[%clk 0:04:50.6]} 9. Bh6 {[%clk 0:04:49.7]} 9... b6
{[%clk 0:04:47.9]} 10. h4 {[%clk 0:04:48.9]} 10... b5 {[%clk 0:04:46.5]} 11. g4
{[%clk 0:04:47.8]} 11... b4 {[%clk 0:04:43.4]} 12. Nb1 {[%clk 0:04:46.7]} 12...
Qxa2 {[%clk 0:04:41.2]} 13. h5 {[%clk 0:04:45.8]} 13... a5 {[%clk 0:04:37.2]}
14. hxg6 {[%clk 0:04:44.4]} 14... fxg6 {[%clk 0:04:35.1]} 15. Bxg7 {[%clk
0:04:43.7]} 15... Kxg7 {[%clk 0:04:34.2]} 16. Qh6+ {[%clk 0:04:43]} 16... Kf7
{[%clk 0:04:32.8]} 17. Ng3 {[%clk 0:04:39.3]} 17... a4 {[%clk 0:04:29.3]} 18. g5
{[%clk 0:04:38.3]} 18... a3 {[%clk 0:04:22.2]} 19. bxa3 {[%clk 0:04:35.5]} 19...
bxa3 {[%clk 0:04:21]} 20. gxf6 {[%clk 0:04:30.6]} 20... Qb2+ {[%clk 0:04:19.2]}
21. Kd2 {[%clk 0:04:29.1]} 21... Qxd4+ {[%clk 0:04:18]} 22. Bd3 {[%clk
0:04:27.3]} 22... Qf2+ {[%clk 0:04:11.2]} 23. Ne2 {[%clk 0:04:26]} 23... a2
{[%clk 0:04:09.1]} 24. Qxh7+ {[%clk 0:04:18.6]} 24... Kxf6 {[%clk 0:04:06.2]}
25. Nc3 {[%clk 0:04:15.2]} 25... Ne5 {[%clk 0:04:00.3]} 26. Ra1 {[%clk
0:04:09.5]} 26... Nxf3+ {[%clk 0:03:58.7]} 27. Kc1 {[%clk 0:04:05.3]} 27... Qe3+
{[%clk 0:03:52.2]} 28. Kb2 {[%clk 0:03:57.6]} 28... Be6 {[%clk 0:03:40]} 29.
Rxa2 {[%clk 0:03:48.7]} 29... Rfb8+ {[%clk 0:03:33.8]} 30. Ka1 {[%clk
0:03:47.2]} 30... Rxa2+ {[%clk 0:03:28.1]} 31. Nxa2 {[%clk 0:03:41.9]} 31... Ra8
{[%clk 0:03:26]} 32. Nc3 {[%clk 0:03:30.3]} 32... Qd4 {[%clk 0:03:24.5]} 33. Kb1
{[%clk 0:03:27.5]} 33... Rb8+ {[%clk 0:03:16]} 34. Kc1 {[%clk 0:03:17.4]} 34...
Bxa2 {[%clk 0:03:11.8]} 35. Rf1 {[%clk 0:03:15]} 35... Qe3+ {[%clk 0:03:00.1]}
36. Kd1 {[%clk 0:03:11]} 36... Qd2# {[%clk 0:02:56]} 0-1

[Event "Live Chess"]
[Site "Chess.com"]
[Date "2024.06.02"]
[Round "-"]
[White "nigelst"]
[Black "RapidMaster109"]
[Result "1-0"]
[WhiteElo "1701"]
[BlackElo "1140"]
[TimeControl "300"]
[EndTime "16:03:09 PDT"]
[Termination "nigelst won by resignation"]

1. e4 {[%clk 0:04:56.1]} 1... c5 {[%clk 0:04:57.7]} 2. Nf3 {[%clk 0:04:55]} 2...
Nc6 {[%clk 0:04:55.5]} 3. Bb5 {[%clk 0:04:52.7]} 3... d6 {[%clk 0:04:53.7]} 4.
O-O {[%clk 0:04:49]} 4... Bd7 {[%clk 0:04:50.1]} 5. c3 {[%clk 0:04:48]} 5... e5
{[%clk 0:04:43.7]} 6. d4 {[%clk 0:04:43.3]} 6... g6 {[%clk 0:04:40.3]} 7. dxe5
{[%clk 0:04:41.2]} 7... Nxe5 {[%clk 0:04:33.9]} 8. Bxd7+ {[%clk 0:04:34.3]} 8...
Nxd7 {[%clk 0:04:31.1]} 9. Bg5 {[%clk 0:04:27.3]} 9... Ngf6 {[%clk 0:04:20.4]}
10. Re1 {[%clk 0:04:19.7]} 10... h6 {[%clk 0:04:10.4]} 11. Bf4 {[%clk
0:04:13.3]} 11... Nb6 {[%clk 0:04:03.4]} 12. b3 {[%clk 0:04:06.8]} 12... Be7
{[%clk 0:03:56.8]} 13. e5 {[%clk 0:04:02.7]} 13... Nfd5 {[%clk 0:03:46.4]} 14.
Bg3 {[%clk 0:03:57.7]} 14... O-O {[%clk 0:03:39]} 15. Qd2 {[%clk 0:03:51.1]}
15... Re8 {[%clk 0:03:18.2]} 16. Qxh6 {[%clk 0:03:46.8]} 1-0